fUST/lending_fUST_20260517
["ID","MTS","AMOUNT","RATE_DAILY","PERIOD"]
[422473662,1778974247000,-8510.6994514,6.834e-05,2]
[422473837,1778975439000,-9566.24694862,6.346e-05,2]
[422473830,1778975439000,-2404.81356325,5.8e-05,2]
[422473831,1778975439000,-2595.18643675,5.8e-05,2]
[422473832,1778975439000,-500.40443101,5.889e-05,2]
[422473834,1778975439000,-300.0,6.145e-05,2]
[422473835,1778975439000,-5249.56506163,6.146e-05,2]
[422473836,1778975439000,-151.0,6.328e-05,2]
[422473833,1778975439000,-187.3095899,5.918e-05,2]
[422473846,1778975441000,-1101.91295579,6.446e-05,2]
[422473845,1778975441000,-699.66942057,6.446e-05,2]
[422473841,1778975441000,-164.1098793,6.445e-05,2]
[422473844,1778975441000,-12559.20196467,6.446e-05,2]
[422473840,1778975441000,-1752.03481958,6.346e-05,2]
[422473842,1778975441000,-500.0,6.445e-05,2]
[422473843,1778975441000,-340.52572582,6.445e-05,2]
[422473864,1778975444000,-8008.41106366,6.446e-05,2]
[422473865,1778975444000,-1544.221246,6.446e-05,2]
[422473866,1778975444000,-3339.73672122,6.446e-05,2]
[422473863,1778975444000,-3803.0474745,6.446e-05,2]
[422473862,1778975444000,-1357.39668019,6.446e-05,2]
[422473873,1778975447000,-3528.65,6.382e-05,2]
[422473876,1778975601000,19.9,8e-05,30]
[422473877,1778975763000,6600.0,0.00017808,120]
[422473893,1778976536000,164.757804,2.794e-05,2]
[422473916,1778976631000,-190.13531062,5.299e-05,2]
[422473915,1778976631000,-474.91468938,5.246e-05,2]
[422473925,1778976638000,-756.81431939,5.299e-05,2]
[422473926,1778976638000,-2343.0,5.299e-05,2]
[422473933,1778976640000,-1219.91665635,5.299e-05,2]
[422473932,1778976640000,-295.73937491,5.299e-05,2]
[422473956,1778976643000,-194.39433873,5.299e-05,2]
[422473957,1778976643000,-109.60566127,5.352e-05,2]
[422473958,1778976643000,-190.39433873,5.352e-05,2]
[422473960,1778976643000,-495.88867834,5.38e-05,2]
[422473959,1778976643000,-6175.44160759,5.353e-05,2]
[422473962,1778976643000,-420.0,5.887e-05,2]
[422473963,1778976643000,-281.21437975,5.985e-05,2]
[422473961,1778976643000,-160.566907,5.686e-05,2]
[422473971,1778976646000,-993.9378209,6.576e-05,2]
[422473966,1778976646000,-247.39244182,5.985e-05,2]
[422473969,1778976646000,-5172.54934307,6.546e-05,2]
[422473967,1778976646000,-151.34734045,5.985e-05,2]
[422473970,1778976646000,-7726.363311,6.546e-05,2]
[422473968,1778976646000,-587.0,6.476e-05,2]
[422473972,1778976646000,-842.0,6.634e-05,2]
[422473976,1778976646000,-96.19035923,6.78e-05,2]
[422473974,1778976646000,-2202.0,6.78e-05,2]
[422473975,1778976646000,-647.0,6.78e-05,2]
[422473977,1778976646000,-842.0,6.78e-05,2]
[422473973,1778976646000,-212.014,6.727e-05,2]
[422474000,1778977144000,9854.91236491,0.000178,120]
[422474068,1778977838000,-3495.8960503,6.079e-05,2]
[422474350,1778977840000,-1106.38514969,6.079e-05,2]
[422474432,1778977846000,-2959.8717019,6.315e-05,2]
[422474430,1778977846000,-397.71880001,6.079e-05,2]
[422474431,1778977846000,-485.97090478,6.199e-05,2]
[422474560,1778979032000,-5000.0,5.723e-05,2]
[422474561,1778979032000,-495.97318887,5.869e-05,2]
[422474683,1778979040000,-1533.95907635,6.315e-05,2]
[422474686,1778979040000,-500.0,6.414e-05,2]
[422474679,1778979040000,-291.24637229,5.985e-05,2]
[422474677,1778979040000,-1.49686591,5.869e-05,2]
[422474682,1778979040000,-1106.3851497,6.231e-05,2]
[422474681,1778979040000,-21102.914533,6.231e-05,2]
[422474685,1778979040000,-500.0,6.414e-05,2]
[422474678,1778979040000,-181.280772,5.899e-05,2]
[422474680,1778979040000,-300.0,6.23e-05,2]
[422474684,1778979040000,-151.0,6.414e-05,2]
[422474688,1778979040000,-524.74356037,6.414e-05,2]
[422474690,1778979040000,-500.0,6.414e-05,2]
[422474701,1778979040000,-350.0,6.414e-05,2]
[422474687,1778979040000,-500.0,6.414e-05,2]
[422474699,1778979040000,-500.0,6.414e-05,2]
[422474698,1778979040000,-500.0,6.414e-05,2]
[422474695,1778979040000,-500.0,6.414e-05,2]
[422474693,1778979040000,-500.0,6.414e-05,2]
[422474692,1778979040000,-500.0,6.414e-05,2]
[422474694,1778979040000,-500.0,6.414e-05,2]
[422474691,1778979040000,-500.0,6.414e-05,2]
[422474697,1778979040000,-500.0,6.414e-05,2]
[422474700,1778979040000,-500.0,6.414e-05,2]
[422474696,1778979040000,-224.40164087,6.414e-05,2]
[422474702,1778979040000,-7185.8628129,6.415e-05,2]
[422474689,1778979040000,-500.0,6.414e-05,2]
[422474712,1778979043000,-151.0,6.414e-05,2]
[422474713,1778979043000,-151.0,6.414e-05,2]
[422474714,1778979043000,-88.78040377,6.414e-05,2]
[422474737,1778979047000,-1527.68463466,6.415e-05,2]
[422474734,1778979047000,-151.0,6.414e-05,2]
[422474735,1778979047000,-151.0,6.414e-05,2]
[422474733,1778979047000,-62.21959623,6.414e-05,2]
[422474736,1778979047000,-487.52065368,6.415e-05,2]
[422474738,1778979047000,-151.0,6.415e-05,2]
[422474740,1778979047000,-151.0,6.415e-05,2]
[422474739,1778979047000,-151.0,6.415e-05,2]
[422474742,1778979047000,-151.0,6.415e-05,2]
[422474741,1778979047000,-151.0,6.415e-05,2]
[422474745,1778979047000,-151.0,6.415e-05,2]
[422474744,1778979047000,-151.0,6.415e-05,2]
[422474743,1778979047000,-151.0,6.415e-05,2]
[422474747,1778979047000,-151.0,6.415e-05,2]
[422474750,1778979047000,-11194.79211341,6.415e-05,2]
[422474749,1778979047000,-151.0,6.415e-05,2]
[422474748,1778979047000,-151.0,6.415e-05,2]
[422474751,1778979047000,-25822.35459411,6.415e-05,2]
[422474746,1778979047000,-151.0,6.415e-05,2]
[422474757,1778979508000,210.72996224,0.00012701,120]
[422474760,1778979736000,9500.0,0.00017808,120]
[422474776,1778980104000,456.5367176,4.984e-05,2]
[422474780,1778980179000,263.4241471,4.984e-05,2]
[422474781,1778980186000,5000.0,5e-05,2]
[422474782,1778980202000,670.95897452,5e-05,2]
[422474783,1778980206000,151.5897819,4.984e-05,2]
[422474784,1778980209000,325.8907786,4.984e-05,2]
[422474815,1778980233000,-519.61552101,5.5e-05,2]
[422474814,1778980233000,-300.0,5.499e-05,2]
[422474813,1778980233000,-181.280772,5.406e-05,2]
[422474812,1778980233000,-489.10370699,5.259e-05,2]
[422474811,1778980233000,-5000.0,5.206e-05,2]
[422474858,1778980238000,-1537.93879738,5.5e-05,2]
[422474877,1778980241000,-151.0,5.608e-05,2]
[422474872,1778980241000,-7509.67695933,5.5e-05,2]
[422474871,1778980241000,-1685.79188277,5.5e-05,2]
[422474873,1778980241000,-1488.66839852,5.5e-05,2]
[422474875,1778980241000,-9219.86425523,5.5e-05,2]
[422474874,1778980241000,-6904.98484437,5.5e-05,2]
[422474878,1778980241000,-151.0,5.825e-05,2]
[422474880,1778980241000,-438.7414403,5.833e-05,2]
[422474882,1778980241000,-9811.31044624,5.9e-05,2]
[422474876,1778980241000,-9277.62952653,5.531e-05,2]
[422474883,1778980241000,-643.78105749,5.9e-05,2]
[422474881,1778980241000,-174.9572,5.864e-05,2]
[422474879,1778980241000,-151.0,5.833e-05,2]
[422474898,1778980243000,-258.23622431,5.9e-05,2]
[422474899,1778980243000,-7664.20878653,5.9e-05,2]
[422474910,1778980247000,-3186.8497915,6e-05,2]
[422474907,1778980247000,-34762.76780317,5.9e-05,2]
[422474909,1778980247000,-3300.37973861,5.9e-05,2]
[422474908,1778980247000,-40660.28206815,5.9e-05,2]
[422474958,1778981417000,151.0,0.000178,120]
[422474978,1778981435000,-5000.0,5.203e-05,2]
[422474981,1778981436000,-300.0,5.499e-05,2]
[422474979,1778981436000,-496.12448522,5.255e-05,2]
[422474980,1778981436000,-181.280772,5.282e-05,2]
[422474984,1778981436000,-1436.12223599,5.5e-05,2]
[422474985,1778981436000,-420.52426311,5.5e-05,2]
[422474983,1778981436000,-4178.59102773,5.5e-05,2]
[422474982,1778981436000,-1910.97056901,5.5e-05,2]
[422474992,1778981439000,-2768.33335288,5.5e-05,2]
[422474995,1778981439000,-1616.0573818,5.682e-05,2]
[422474993,1778981439000,-4689.89104775,5.571e-05,2]
[422474994,1778981439000,-5071.36867631,5.671e-05,2]
[422475013,1778981439000,-500.0,5.699e-05,2]
[422475001,1778981439000,-500.0,5.699e-05,2]
[422475005,1778981439000,-500.0,5.699e-05,2]
[422474999,1778981439000,-500.0,5.699e-05,2]
[422475003,1778981439000,-500.0,5.699e-05,2]
[422475007,1778981439000,-500.0,5.699e-05,2]
[422475011,1778981439000,-500.0,5.699e-05,2]
[422475009,1778981439000,-500.0,5.699e-05,2]
[422475015,1778981439000,-500.0,5.699e-05,2]
[422474997,1778981439000,-500.0,5.699e-05,2]
[422475027,1778981439000,-500.0,5.699e-05,2]
[422475061,1778981439000,-16876.73732046,5.818e-05,2]
[422475056,1778981439000,-57781.29838611,5.7e-05,2]
[422475059,1778981439000,-3570.90575636,5.782e-05,2]
[422475048,1778981439000,-500.0,5.699e-05,2]
[422475050,1778981439000,-40926.05501073,5.7e-05,2]
[422475045,1778981439000,-500.0,5.699e-05,2]
[422475023,1778981439000,-157.36363928,5.699e-05,2]
[422475043,1778981439000,-500.0,5.699e-05,2]
[422475040,1778981439000,-500.0,5.699e-05,2]
[422475037,1778981439000,-450.0,5.699e-05,2]
[422475034,1778981439000,-500.0,5.699e-05,2]
[422475031,1778981439000,-500.0,5.699e-05,2]
[422475054,1778981439000,-61505.90083491,5.7e-05,2]
[422475314,1778981441000,-3944.63043165,5.882e-05,2]
[422475311,1778981441000,-5916.89900191,5.818e-05,2]
[422475321,1778981441000,-1431.69770919,5.918e-05,2]
[422475318,1778981441000,-151.0,5.9e-05,2]
[422475322,1778981441000,-4619.0294085,5.918e-05,2]
[422476106,1778981447000,-4116.91475234,5.918e-05,2]
[422476102,1778981447000,-151.0,5.918e-05,2]
[422476104,1778981447000,-294.231652,5.918e-05,2]
[422476095,1778981447000,-5000.0,5.76e-05,2]
[422476098,1778981447000,-17019.89624111,5.918e-05,2]
[422476100,1778981447000,-13344.3465436,5.918e-05,2]
[422477062,1778982096000,470.0,0.00017808,120]
[422477064,1778982605000,5000.0,5e-05,2]
[422477085,1778982631000,-3333.43942325,5.07e-05,2]
[422477231,1778982640000,-250.56519625,5.07e-05,2]
[422477233,1778982640000,-1118.8014182,5.07e-05,2]
[422477331,1778982641000,-325.8907786,5.764e-05,2]
[422477312,1778982641000,-181.66817101,5.549e-05,2]
[422477310,1778982641000,-500.0,5.549e-05,2]
[422477315,1778982641000,-500.0,5.549e-05,2]
[422477314,1778982641000,-279.24051018,5.549e-05,2]
[422477316,1778982641000,-500.0,5.549e-05,2]
[422477317,1778982641000,-500.0,5.549e-05,2]
[422477318,1778982641000,-500.0,5.549e-05,2]
[422477320,1778982641000,-500.0,5.549e-05,2]
[422477319,1778982641000,-500.0,5.549e-05,2]
[422477322,1778982641000,-500.0,5.549e-05,2]
[422477321,1778982641000,-500.0,5.549e-05,2]
[422477326,1778982641000,-1085.3073764,5.75e-05,2]
[422477327,1778982641000,-4946.410062,5.75e-05,2]
[422477323,1778982641000,-458915.26868899,5.55e-05,2]
[422477325,1778982641000,-64519.563759,5.75e-05,2]
[422477324,1778982641000,-52573.98303387,5.55e-05,2]
[422477328,1778982641000,-3469.1816891,5.75e-05,2]
[422477329,1778982641000,-151.0,5.75e-05,2]
[422477338,1778982641000,-26119.9985525,6e-05,2]
[422477339,1778982641000,-116237.1062307,6e-05,2]
[422477330,1778982641000,-151.0,5.75e-05,2]
[422477332,1778982641000,-12782.28158186,5.918e-05,2]
[422477313,1778982641000,-500.0,5.549e-05,2]
[422477311,1778982641000,-500.0,5.549e-05,2]
[422477283,1778982641000,-500.0,5.549e-05,2]
[422477305,1778982641000,-500.0,5.549e-05,2]
[422477272,1778982641000,-173.43220127,5.5e-05,2]
[422477270,1778982641000,-178.66170608,5.5e-05,2]
[422477274,1778982641000,-176.57936603,5.5e-05,2]
[422477268,1778982641000,-263.8671356,5.147e-05,2]
[422477266,1778982641000,-297.1939623,5.07e-05,2]
[422477267,1778982641000,-497.93947453,5.122e-05,2]
[422477269,1778982641000,-158.9463258,5.5e-05,2]
[422477278,1778982641000,-500.0,5.549e-05,2]
[422477279,1778982641000,-500.0,5.549e-05,2]
[422477281,1778982641000,-500.0,5.549e-05,2]
[422477276,1778982641000,-300.0,5.548e-05,2]
[422477291,1778982641000,-500.0,5.549e-05,2]
[422477285,1778982641000,-500.0,5.549e-05,2]
[422477287,1778982641000,-500.0,5.549e-05,2]
[422477295,1778982641000,-500.0,5.549e-05,2]
[422477289,1778982641000,-500.0,5.549e-05,2]
[422477297,1778982641000,-500.0,5.549e-05,2]
[422477294,1778982641000,-500.0,5.549e-05,2]
[422477299,1778982641000,-500.0,5.549e-05,2]
[422477303,1778982641000,-500.0,5.549e-05,2]
[422477301,1778982641000,-500.0,5.549e-05,2]
[422477307,1778982641000,-500.0,5.549e-05,2]
[422477308,1778982641000,-500.0,5.549e-05,2]
[422477340,1778982641000,-151.0,6e-05,2]
[422477333,1778982641000,-4524.5274547,5.918e-05,2]
[422477365,1778982641000,-1257.451,6.558e-05,2]
[422477337,1778982641000,-900.71154265,5.982e-05,2]
[422477364,1778982641000,-599.60298507,6.546e-05,2]
[422477361,1778982641000,-578.20924308,6.491e-05,2]
[422477368,1778982641000,-647.0,6.558e-05,2]
[422477366,1778982641000,-2203.0,6.558e-05,2]
[422477336,1778982641000,-3944.68374506,5.982e-05,2]
[422477374,1778982641000,-327.1846891,6.571e-05,2]
[422477373,1778982641000,-151.0,6.571e-05,2]
[422477375,1778982641000,-621.78829552,6.601e-05,2]
[422477385,1778982641000,-204.33660083,6.713e-05,2]
[422477377,1778982641000,-28730.4072417,6.68e-05,2]
[422477384,1778982641000,-160.0,6.713e-05,2]
[422477376,1778982641000,-644.79446246,6.656e-05,2]
[422477378,1778982641000,-1833.31405728,6.697e-05,2]
[422477382,1778982641000,-1054.00182229,6.7e-05,2]
[422477379,1778982641000,-449.42951692,6.7e-05,2]
[422477383,1778982641000,-668.65185757,6.711e-05,2]
[422477380,1778982641000,-917.97123422,6.7e-05,2]
[422477381,1778982641000,-1014.58053137,6.7e-05,2]
[422477386,1778982641000,-587.0,6.713e-05,2]
[422477390,1778982641000,-64179.06910875,6.834e-05,2]
[422477389,1778982641000,-23441.75208813,6.834e-05,2]
[422477387,1778982641000,-693.3919763,6.766e-05,2]
[422477388,1778982641000,-719.04747942,6.821e-05,2]
[422477372,1778982641000,-325.9079252,6.56e-05,2]
[422477362,1778982641000,-35694.79635033,6.492e-05,2]
[422477369,1778982641000,-185.0,6.558e-05,2]
[422477367,1778982641000,-188.0,6.558e-05,2]
[422477341,1778982641000,-151.0,6e-05,2]
[422477334,1778982641000,-151.0,5.918e-05,2]
[422477335,1778982641000,-151.0,5.918e-05,2]
[422477348,1778982641000,-1000.0,6.415e-05,2]
[422477343,1778982641000,-4318.35510702,6.082e-05,2]
[422477371,1778982641000,-270.5718936,6.56e-05,2]
[422477342,1778982641000,-152.0,6.023e-05,7]
[422477347,1778982641000,-500.0,6.382e-05,2]
[422477344,1778982641000,-420.0,6.103e-05,2]
[422477345,1778982641000,-190.96,6.156e-05,2]
[422477354,1778982641000,-1000.0,6.415e-05,2]
[422477355,1778982641000,-1016.88844029,6.415e-05,2]
[422477346,1778982641000,-537.6845,6.381e-05,2]
[422477357,1778982641000,-151.0,6.415e-05,2]
[422477360,1778982641000,-557.5788265,6.436e-05,2]
[422477358,1778982641000,-151.0,6.415e-05,2]
[422477352,1778982641000,-1000.0,6.415e-05,2]
[422477359,1778982641000,-156.39141923,6.415e-05,2]
[422477350,1778982641000,-669.31383229,6.415e-05,2]
[422477349,1778982641000,-1000.0,6.415e-05,2]
[422477353,1778982641000,-1000.0,6.415e-05,2]
[422477356,1778982641000,-151.0,6.415e-05,2]
[422477363,1778982641000,-151.0,6.492e-05,2]
[422477370,1778982641000,-445.349,6.558e-05,2]
[422477351,1778982641000,-1000.0,6.415e-05,2]
[422477404,1778982646000,-5234.79062848,6.834e-05,2]
[422477403,1778982646000,-1222.20937152,6.697e-05,2]
[422477414,1778982715000,300.0,6.848e-05,11]
[422477418,1778983067000,600.0,0.000178,120]
[422477419,1778983082000,600.0,0.000178,120]
[422477420,1778983102000,493.74,0.000178,120]
[422477421,1778983164000,29025.07058693,0.000178,120]
[422477422,1778983243000,70965.14088024,0.000178,120]
[422477423,1778983311000,200.50957298,0.000178,120]
[422477443,1778983612000,4027.55352605,5e-05,2]
[422477447,1778983797000,5000.0,5e-05,2]
[422477457,1778983831000,-493.1685742,5.323e-05,2]
[422477456,1778983831000,-5000.0,5.096e-05,2]
[422477459,1778983832000,-2469.64413167,5.5e-05,2]
[422477460,1778983832000,-731.87647865,5.5e-05,2]
[422477461,1778983832000,-1899.87042264,5.5e-05,2]
[422477458,1778983832000,-300.0,5.499e-05,2]
[422477499,1778983838000,-420.0,6.049e-05,2]
[422477512,1778983838000,-500.0,6.548e-05,2]
[422477526,1778983838000,-500.0,6.548e-05,2]
[422477520,1778983838000,-500.0,6.548e-05,2]
[422477524,1778983838000,-500.0,6.548e-05,2]
[422477514,1778983838000,-500.0,6.548e-05,2]
[422477495,1778983838000,-151.0,5.776e-05,2]
[422477501,1778983838000,-552.34278249,6.342e-05,2]
[422477493,1778983838000,-6433.94342324,5.774e-05,2]
[422477497,1778983838000,-152.0,6.023e-05,7]
[422477509,1778983838000,-500.0,6.548e-05,2]
[422477507,1778983838000,-500.0,6.548e-05,2]
[422477505,1778983838000,-500.0,6.548e-05,2]
[422477492,1778983838000,-6088.11914152,5.674e-05,2]
[422477503,1778983838000,-500.0,6.496e-05,2]
[422477484,1778983838000,-2637.92562653,5.5e-05,2]
[422477490,1778983838000,-4402.1251315,5.665e-05,2]
[422477488,1778983838000,-1461.7258302,5.665e-05,2]
[422477486,1778983838000,-5851.80797548,5.574e-05,2]
[422477516,1778983838000,-500.0,6.548e-05,2]
[422477518,1778983838000,-500.0,6.548e-05,2]
[422477511,1778983838000,-500.0,6.548e-05,2]
[422477528,1778983838000,-500.0,6.548e-05,2]
[422477571,1778983838000,-6326.23149862,6.549e-05,2]
[422477563,1778983838000,-1136.54756164,6.549e-05,2]
[422477566,1778983838000,-6398.15124645,6.549e-05,2]
[422477568,1778983838000,-540934.30612143,6.549e-05,2]
[422477552,1778983838000,-500.0,6.548e-05,2]
[422477522,1778983838000,-500.0,6.548e-05,2]
[422477556,1778983838000,-500.0,6.548e-05,2]
[422477554,1778983838000,-500.0,6.548e-05,2]
[422477559,1778983838000,-21769.73952399,6.549e-05,2]
[422477550,1778983838000,-500.0,6.548e-05,2]
[422477557,1778983838000,-500.0,6.548e-05,2]
[422477548,1778983838000,-258.3396738,6.548e-05,2]
[422477541,1778983838000,-500.0,6.548e-05,2]
[422477535,1778983838000,-500.0,6.548e-05,2]
[422477538,1778983838000,-500.0,6.548e-05,2]
[422477540,1778983838000,-500.0,6.548e-05,2]
[422477546,1778983838000,-500.0,6.548e-05,2]
[422477530,1778983838000,-500.0,6.548e-05,2]
[422477532,1778983838000,-500.0,6.548e-05,2]
[422477533,1778983838000,-500.0,6.548e-05,2]
[422477544,1778983838000,-500.0,6.548e-05,2]
[422477788,1778983840000,-897.44031782,6.549e-05,2]
[422477885,1778983843000,-3940.33963094,6.483e-05,2]
[422477890,1778983843000,-456.0,6.483e-05,2]
[422477888,1778983843000,-403.29280148,6.483e-05,2]
[422477947,1778983846000,-200.36756758,6.483e-05,2]
[422477948,1778983846000,-65368.89622149,6.549e-05,2]
[422477949,1778983962000,297.6099,0.00017808,120]
[422477955,1778984159000,1138.05,0.00017808,120]
[422478028,1778985036000,-200.0,6.482e-05,2]
[422478031,1778985036000,-626.4270056,6.497e-05,2]
[422478030,1778985036000,-225.60709737,6.497e-05,2]
[422478025,1778985036000,-4029.41671591,6.398e-05,2]
[422478029,1778985036000,-250.52,6.482e-05,7]
[422478024,1778985036000,-179.24543093,6.17e-05,2]
[422478023,1778985036000,-152.0,6.024e-05,7]
[422478022,1778985036000,-494.73618222,6.012e-05,2]
[422478021,1778985036000,-5000.0,5.881e-05,2]
[422478026,1778985036000,-300.0,6.411e-05,2]
[422478032,1778985036000,-617.55725585,6.497e-05,2]
[422478027,1778985036000,-500.0,6.412e-05,2]
[422478035,1778985036000,-500.0,6.497e-05,2]
[422478033,1778985036000,-500.0,6.497e-05,2]
[422478043,1778985036000,-144.82751851,6.497e-05,2]
[422478042,1778985036000,-500.0,6.497e-05,2]
[422478041,1778985036000,-500.0,6.497e-05,2]
[422478040,1778985036000,-500.0,6.497e-05,2]
[422478044,1778985036000,-355.17248149,6.497e-05,2]
[422478037,1778985036000,-500.0,6.497e-05,2]
[422478039,1778985036000,-500.0,6.497e-05,2]
[422478036,1778985036000,-500.0,6.497e-05,2]
[422478038,1778985036000,-500.0,6.497e-05,2]
[422478034,1778985036000,-500.0,6.497e-05,2]
[422478045,1778985036000,-50.72169868,6.497e-05,2]
[422478117,1778985038000,-500.0,6.497e-05,2]
[422478108,1778985038000,-500.0,6.497e-05,2]
[422478119,1778985038000,-500.0,6.497e-05,2]
[422478107,1778985038000,-449.27830132,6.497e-05,2]
[422478121,1778985038000,-500.0,6.497e-05,2]
[422478112,1778985038000,-500.0,6.497e-05,2]
[422478110,1778985038000,-390.84895762,6.497e-05,2]
[422478124,1778985038000,-500.0,6.497e-05,2]
[422478114,1778985038000,-500.0,6.497e-05,2]
[422478116,1778985038000,-500.0,6.497e-05,2]
[422478135,1778985038000,-500.0,6.497e-05,2]
[422478129,1778985038000,-500.0,6.497e-05,2]
[422478131,1778985038000,-500.0,6.497e-05,2]
[422478133,1778985038000,-500.0,6.497e-05,2]
[422478137,1778985038000,-500.0,6.497e-05,2]
[422478139,1778985038000,-500.0,6.497e-05,2]
[422478141,1778985038000,-500.0,6.497e-05,2]
[422478143,1778985038000,-500.0,6.497e-05,2]
[422478147,1778985038000,-500.0,6.497e-05,2]
[422478145,1778985038000,-500.0,6.497e-05,2]
[422478149,1778985038000,-26812.29472134,6.498e-05,2]
[422478127,1778985038000,-500.0,6.497e-05,2]
[422478188,1778985040000,-572.49082356,6.498e-05,2]
[422478197,1778985043000,-741.48,6.498e-05,2]
[422478201,1778985046000,-51184.04635246,6.498e-05,2]
[422478203,1778985046000,-500.0,6.512e-05,2]
[422478202,1778985046000,-500.0,6.512e-05,2]
[422478206,1778985046000,-194.46557932,6.512e-05,2]
[422478204,1778985046000,-500.0,6.512e-05,2]
[422478207,1778985046000,-500.0,6.512e-05,2]
[422478205,1778985046000,-500.0,6.512e-05,2]
[422478219,1778985047000,-500.0,6.512e-05,2]
[422478209,1778985047000,-500.0,6.512e-05,2]
[422478208,1778985047000,-500.0,6.512e-05,2]
[422478210,1778985047000,-500.0,6.512e-05,2]
[422478211,1778985047000,-500.0,6.512e-05,2]
[422478213,1778985047000,-500.0,6.512e-05,2]
[422478212,1778985047000,-500.0,6.512e-05,2]
[422478216,1778985047000,-500.0,6.512e-05,2]
[422478218,1778985047000,-500.0,6.512e-05,2]
[422478217,1778985047000,-500.0,6.512e-05,2]
[422478215,1778985047000,-500.0,6.512e-05,2]
[422478220,1778985047000,-500.0,6.512e-05,2]
[422478214,1778985047000,-500.0,6.512e-05,2]
[422478221,1778985047000,-500.0,6.512e-05,2]
[422478233,1778985047000,-1556.54390406,6.513e-05,2]
[422478232,1778985047000,-9799.52832682,6.513e-05,2]
[422478222,1778985047000,-486.12590553,6.512e-05,2]
[422478226,1778985047000,-500.0,6.512e-05,2]
[422478231,1778985047000,-19678.7345714,6.513e-05,2]
[422478228,1778985047000,-1349.9605252,6.513e-05,2]
[422478229,1778985047000,-172.7203859,6.513e-05,2]
[422478230,1778985047000,-3219.445849,6.513e-05,2]
[422478225,1778985047000,-500.0,6.512e-05,2]
[422478224,1778985047000,-500.0,6.512e-05,2]
[422478223,1778985047000,-500.0,6.512e-05,2]
[422478227,1778985047000,-250.0,6.512e-05,2]
[422478235,1778985708000,240.27420117,0.00017808,120]
[422478238,1778986001000,5000.0,5e-05,2]
[422478239,1778986009000,1087.95467387,5e-05,2]
[422478267,1778986232000,-881.03980434,5.089e-05,2]
[422478274,1778986232000,-4118.96019566,5.089e-05,2]
[422478276,1778986232000,-490.01265603,5.166e-05,2]
[422478280,1778986232000,-226.78035881,5.499e-05,2]
[422478283,1778986232000,-392.25510096,5.5e-05,2]
[422478282,1778986232000,-73.21964119,5.499e-05,2]
[422478278,1778986232000,-164.2467895,5.271e-05,2]
[422478369,1778986238000,-500.0,6.296e-05,2]
[422478367,1778986238000,-500.0,6.296e-05,2]
[422478365,1778986238000,-500.0,6.296e-05,2]
[422478363,1778986238000,-201.54526114,6.296e-05,2]
[422478355,1778986238000,-500.0,6.296e-05,2]
[422478359,1778986238000,-500.0,6.296e-05,2]
[422478357,1778986238000,-500.0,6.296e-05,2]
[422478361,1778986238000,-500.0,6.296e-05,2]
[422478353,1778986238000,-500.0,6.296e-05,2]
[422478351,1778986238000,-500.0,6.296e-05,2]
[422478349,1778986238000,-500.0,6.296e-05,2]
[422478347,1778986238000,-500.0,6.296e-05,2]
[422478343,1778986238000,-500.0,6.296e-05,2]
[422478345,1778986238000,-501.81945367,6.296e-05,2]
[422478342,1778986238000,-278.81124527,6.296e-05,2]
[422478338,1778986238000,-500.0,6.296e-05,2]
[422478340,1778986238000,-509.30120748,6.296e-05,2]
[422478330,1778986238000,-5392.59113376,6.234e-05,2]
[422478328,1778986238000,-420.0,6.049e-05,2]
[422478323,1778986238000,-5276.44679296,5.822e-05,2]
[422478325,1778986238000,-513.78,5.848e-05,2]
[422478326,1778986238000,-152.0,6.024e-05,7]
[422478336,1778986238000,-500.0,6.296e-05,2]
[422478334,1778986238000,-500.0,6.296e-05,2]
[422478332,1778986238000,-500.0,6.296e-05,2]
[422478321,1778986238000,-3519.20941515,5.5e-05,2]
[422478319,1778986238000,-1369.71693638,5.5e-05,2]
[422478377,1778986238000,-500.0,6.296e-05,2]
[422478373,1778986238000,-500.0,6.296e-05,2]
[422478371,1778986238000,-500.0,6.296e-05,2]
[422478379,1778986238000,-500.0,6.296e-05,2]
[422478436,1778986238000,-649.40318357,6.297e-05,2]
[422478426,1778986238000,-649.40318357,6.297e-05,2]
[422478434,1778986238000,-649.40318357,6.297e-05,2]
[422478439,1778986238000,-649.40318357,6.297e-05,2]
[422478432,1778986238000,-649.40318357,6.297e-05,2]
[422478441,1778986238000,-649.40318357,6.297e-05,2]
[422478430,1778986238000,-649.40318357,6.297e-05,2]
[422478428,1778986238000,-649.40318357,6.297e-05,2]
[422478424,1778986238000,-649.40318357,6.297e-05,2]